bitfinex-derivatives/quotes_SOLF0:USTF0_20250331
["timestamp","ask_amount","ask_price","bid_price","bid_amount"]
[1743442440732,0.05294441,125.57,125.54,7.966]
[1743442440932,0.05294441,125.57,125.54,30.04]
[1743442441832,0.05294441,125.57,125.55,9.41689139]
[1743442442128,23.79423365,125.63,125.54,51.69413365]
[1743442442334,23.79423365,125.63,125.55,2.1487]
[1743442443029,7.9631,125.59,125.56,7.9648]
[1743442443228,7.9631,125.59,125.58,0.05994112]
[1743442443437,0.05889503,125.6,125.58,0.05994112]
[1743442443732,0.05889503,125.6,125.58,8.02354112]
[1743442444129,7.9594,125.65,125.61,7.9612]
[1743442444336,2.1401,125.66,125.61,7.9612]
[1743442444929,2.1401,125.66,125.62,7.9608]
[1743442445129,30.14,125.69,125.63,30.14]
[1743442445130,21.65413365,125.69,125.63,30.14]
[1743442445332,7.9577,125.68,125.63,30.14]
[1743442445533,0.05467524,125.65,125.64,7.9592]
[1743442445735,21.65413365,125.69,125.64,7.9592]
[1743442445937,0.05194249,125.66,125.64,7.9592]
[1743442446230,0.05194249,125.66,125.63,30.1945057]
[1743442446830,0.05194249,125.66,125.63,0.0545057]
[1743442447841,0.05194249,125.66,125.65,7.9592]
[1743442448645,29.60923365,125.72,125.67,7.9578]
[1743442448939,59.88923365,125.72,125.67,7.9578]
[1743442449142,7.9554,125.71,125.67,7.9578]
[1743442449733,7.9554,125.71,125.64,30.3]
[1743442449734,21.65413365,125.7,125.64,30.3]
[1743442449932,21.7070921,125.7,125.68,0.05451381]
[1743442450136,29.6633921,125.7,125.68,0.05451381]
[1743442450336,21.7070921,125.7,125.68,0.05451381]
[1743442452042,21.7070921,125.7,125.68,8.01171381]
[1743442452245,0.05295845,125.7,125.68,0.05451381]
[1743442454139,0.05295845,125.7,125.68,8.01181381]
[1743442454544,21.7070921,125.7,125.68,0.05451381]
[1743442455849,29.6632921,125.7,125.68,0.05451381]
[1743442456051,21.7070921,125.7,125.68,0.05451381]
[1743442456347,7.9567,125.69,125.68,0.05451381]
[1743442457749,7.9575,125.68,125.64,7.9595]
[1743442458550,7.9589,125.66,125.62,10.0526]
[1743442458745,21.65413365,125.68,125.62,2.0918]
[1743442458950,0.05385022,125.65,125.63,0.0522231]
[1743442459252,0.05385022,125.65,125.63,8.0124231]
[1743442459452,0.05385022,125.65,125.63,0.0522231]
[1743442459655,0.05385022,125.65,125.63,8.0125231]
[1743442459950,0.05385022,125.65,125.63,0.0522231]
[1743442460347,8.01315022,125.65,125.63,0.0522231]
[1743442461050,0.05385022,125.65,125.63,0.0522231]
[1743442461745,8.01305022,125.65,125.63,0.0522231]
[1743442462154,0.05385022,125.65,125.63,0.0522231]
[1743442462345,7.9598,125.64,125.63,0.0522231]
[1743442462556,0.05385022,125.65,125.63,0.0522231]
[1743442463350,7.9598,125.64,125.63,0.0522231]
[1743442464852,0.05385022,125.65,125.63,0.0522231]
[1743442465252,0.05385022,125.65,125.64,7.9598]
[1743442465452,0.05385022,125.65,125.63,0.0522231]
[1743442465850,0.05385022,125.65,125.63,8.0124231]
[1743442466454,0.05385022,125.65,125.63,0.0522231]
[1743442467053,0.05385022,125.65,125.64,7.9598]
[1743442467253,30.26,125.7,125.63,0.0522231]
[1743442467456,4.2896,125.71,125.63,0.0522231]
[1743442467760,7.9576,125.68,125.65,7.9589]
[1743442468359,8.01258442,125.68,125.65,8.01116035]
[1743442468851,0.05498442,125.68,125.66,7.9585]
[1743442469451,0.05498442,125.68,125.67,7.9579]
[1743442469853,0.05498442,125.68,125.65,30.33226035]
[1743442470258,0.05498442,125.68,125.66,7.9581]
[1743442471155,0.05498442,125.68,125.65,30.33226035]
[1743442471353,8.01228442,125.68,125.65,30.33226035]
[1743442471858,0.05498442,125.68,125.65,30.33226035]
[1743442472160,0.05498442,125.68,125.65,38.29146035]
[1743442473565,8.01238442,125.68,125.65,38.29146035]
[1743442473761,8.01238442,125.68,125.65,30.33226035]
[1743442474264,0.05498442,125.68,125.65,38.29086035]
[1743442474554,0.05498442,125.68,125.65,30.33226035]
[1743442475155,0.05498442,125.68,125.66,7.9582]
[1743442475551,8.01228442,125.68,125.66,7.9582]
[1743442475756,0.05498442,125.68,125.66,7.9582]
[1743442478166,0.05498442,125.68,125.67,7.9579]
[1743442478862,0.05498442,125.68,125.66,12.2176]
[1743442479259,21.70911807,125.68,125.55,48.9700617]
[1743442479463,21.65413365,125.66,125.59,2.0531]
[1743442479660,21.65413365,125.66,125.6,1.45143166]
[1743442479972,21.65413365,125.66,125.59,10.0157]
[1743442479973,7.9609,125.63,125.59,10.0157]
[1743442480264,7.9609,125.63,125.59,40.3557]
[1743442480460,7.9609,125.63,125.6,0.05509375]
[1743442480665,0.05772713,125.62,125.6,0.05509375]
[1743442481566,7.9617,125.61,125.6,0.05509375]
[1743442482167,8.01902713,125.62,125.6,0.05509375]
[1743442484369,7.9617,125.61,125.6,0.05509375]
[1743442488370,2.21412713,125.62,125.6,0.05509375]
[1743442488371,8.01912713,125.62,125.6,0.05509375]
[1743442489172,0.05772713,125.62,125.6,30.31509375]
[1743442489574,0.05772713,125.62,125.6,38.27709375]
[1743442489777,0.05772713,125.62,125.6,30.31509375]
[1743442490180,0.05772713,125.62,125.6,0.05509375]
[1743442490181,7.9617,125.61,125.6,0.05509375]
[1743442498980,29.61583365,125.61,125.6,0.05509375]
[1743442499180,29.61583365,125.61,125.6,9.375e-05]
[1743442500383,7.9655,125.55,125.53,7.9665]
[1743442500588,7.9655,125.55,125.53,38.0065]
[1743442500789,7.9655,125.55,125.53,30.04]
[1743442500984,7.9662,125.54,125.53,30.04]
[1743442501185,7.9662,125.54,125.52,7.9672]
[1743442501388,7.9662,125.54,125.51,9.9947]
[1743442501584,8.01687341,125.54,125.52,0.05495967]
[1743442502091,0.05067341,125.54,125.52,8.02235967]
[1743442502285,0.05067341,125.54,125.52,0.05495967]
[1743442503382,0.05067341,125.54,125.52,8.02205967]
[1743442503690,8.01687341,125.54,125.52,8.02205967]
[1743442503886,0.05067341,125.54,125.52,0.05495967]
[1743442504082,7.9668,125.53,125.52,0.05495967]
[1743442504787,7.9691,125.5,125.45,2.0549]
[1743442504986,4.0406,125.54,125.46,30.06]
[1743442505188,4.0406,125.54,125.44,33.0393617]
[1743442505189,21.65413365,125.49,125.44,33.0393617]
[1743442505384,7.9719,125.45,125.44,33.0393617]
[1743442505586,38.7319,125.45,125.44,33.0393617]
[1743442506190,60.38603365,125.45,125.43,87.28507746]
[1743442506384,7.9725,125.44,125.43,87.28507746]
[1743442506887,29.62663365,125.44,125.43,87.28507746]
[1743442507687,60.52663365,125.44,125.43,87.28507746]
[1743442508492,7.9737,125.43,125.38,37.07565755]
[1743442508985,0.05228007,125.42,125.38,37.07565755]
[1743442509290,21.70641372,125.42,125.38,33.00415755]
[1743442509490,21.65413365,125.4,125.38,33.00415755]
[1743442509990,29.62983365,125.4,125.38,33.00415755]
[1743442510191,0.05228007,125.42,125.38,33.00415755]
[1743442510384,21.70641372,125.42,125.38,33.00415755]
[1743442511387,21.70641372,125.42,125.38,40.98045755]
[1743442511588,0.05228007,125.42,125.38,33.00415755]
[1743442512383,0.05228007,125.42,125.37,30.86]
[1743442512591,8.02608007,125.42,125.37,38.8366]
[1743442512888,8.02608007,125.42,125.35,30.82]
[1743442513187,8.02608007,125.42,125.33,2.0833]
[1743442513188,52.64641372,125.42,125.33,2.0833]
[1743442513383,21.65413365,125.4,125.34,30.94]
[1743442513591,21.65413365,125.36,125.3,7.9814]
[1743442513888,21.65413365,125.36,125.27,6.1927]
[1743442514091,29.63353365,125.34,125.28,1.44363005]
[1743442514291,21.70829071,125.34,125.28,1.44363005]
[1743442514486,0.05415706,125.34,125.28,1.44363005]
[1743442514687,0.05415706,125.34,125.31,7.9802]
[1743442514991,0.05415706,125.34,125.27,56.76653365]
[1743442514992,0.05415706,125.34,125.3,31.02]
[1743442515292,0.05415706,125.34,125.29,2.1491]
[1743442515689,0.05415706,125.34,125.31,7.9804]
[1743442515889,0.05415706,125.34,125.29,33.2091]
[1743442516488,0.05415706,125.34,125.3,7.9811]
[1743442516887,0.05415706,125.34,125.29,33.2091]
[1743442517095,0.05415706,125.34,125.32,7.9798]
[1743442517689,33.2424,125.41,125.32,31.04]
[1743442517889,21.65413365,125.4,125.32,31.04]
[1743442518292,7.9757,125.39,125.34,7.9785]
[1743442518689,29.62953365,125.4,125.32,52.69413365]
[1743442518895,0.05058199,125.38,125.35,0.05041716]
[1743442519391,0.05058199,125.38,125.36,7.9773]
[1743442519895,0.05058199,125.38,125.35,8.02821716]
[1743442520891,0.05058199,125.38,125.35,0.05041716]
[1743442521095,8.02718199,125.38,125.35,0.05041716]
[1743442521295,0.05058199,125.38,125.35,0.05041716]
[1743442521594,8.02718199,125.38,125.35,0.05041716]
[1743442521792,0.05058199,125.38,125.35,0.05041716]
[1743442522197,7.9773,125.37,125.35,0.05041716]
[1743442525098,0.05058199,125.38,125.35,31.05041716]
[1743442525795,0.05058199,125.38,125.37,7.977]
[1743442526194,0.05058199,125.38,125.36,7.9773]
[1743442526401,0.05058199,125.38,125.35,31.05041716]
[1743442526590,0.05058199,125.38,125.35,0.05041716]
[1743442527093,8.02728199,125.38,125.35,8.02861716]
[1743442527290,0.05058199,125.38,125.35,0.05041716]
[1743442528397,7.977,125.37,125.35,0.05041716]
[1743442528894,7.9776,125.36,125.35,0.05041716]
[1743442530695,29.63173365,125.36,125.35,0.05041716]
[1743442535800,7.9773,125.37,125.35,0.05041716]
[1743442536003,21.70471564,125.38,125.35,0.05041716]
[1743442536400,7.9776,125.36,125.35,0.05041716]
[1743442537500,29.63173365,125.36,125.35,0.05041716]
[1743442538507,60.55173365,125.36,125.35,0.05041716]
[1743442538707,52.57413365,125.36,125.28,7.9824]
[1743442538907,21.65413365,125.34,125.25,6.1864]
[1743442539113,21.65413365,125.32,125.26,30.94]
[1743442539305,7.9818,125.3,125.27,7.9831]
[1743442539507,21.65413365,125.32,125.25,37.1464]
[1743442539808,21.70445051,125.3,125.16,386.971]
[1743442540105,21.65413365,125.28,125.19,21.65413365]
[1743442540307,0.05589224,125.24,125.2,1.44443702]
[1743442540509,21.65413365,125.22,125.14,218.25437178]
[1743442540901,0.05466172,125.19,125.14,218.25437178]
[1743442541210,7.9897,125.18,125.14,218.25437178]
[1743442541404,0.05466172,125.19,125.14,218.25437178]
[1743442541605,0.05466172,125.19,125.15,31.16]
[1743442543612,0.05466172,125.19,125.16,31.24]
[1743442544206,0.05466172,125.19,125.14,31.36]
[1743442544507,0.05466172,125.19,125.16,7.9904]
[1743442544909,0.05466172,125.19,125.14,31.36]
[1743442545110,0.05466172,125.19,125.16,7.9903]
[1743442545706,0.05466172,125.19,125.17,7.9891]
[1743442545913,0.05466172,125.19,125.14,31.36]
[1743442546314,0.05466172,125.19,125.12,6.1864]
[1743442546504,0.05466172,125.19,125.12,37.5664]
[1743442546910,35.13760754,125.19,125.12,37.5664]
[1743442547312,0.05466172,125.19,125.12,37.5664]
[1743442548313,0.05466172,125.19,125.13,1.44549536]
[1743442548514,0.05466172,125.19,125.12,37.5664]
[1743442548911,0.05466172,125.19,125.16,7.9898]
[1743442549214,0.05466172,125.19,125.12,37.5664]
[1743442549509,8.04366172,125.19,125.12,37.5664]
[1743442549919,8.04366172,125.19,125.13,7.9921]
[1743442550312,7.9891,125.18,125.13,7.9921]
[1743442550517,0.05466172,125.19,125.12,14.179]
[1743442550817,31.51466172,125.19,125.12,45.639]
[1743442551111,31.51466172,125.19,125.12,6.1864]
[1743442551313,35.08294582,125.17,125.04,650.08]
[1743442551617,35.08294582,125.14,125.07,7.9957]
[1743442551814,35.08294582,125.14,125.05,38.2381]
[1743442552112,0.05770532,125.12,125.06,1.44608837]
[1743442552706,0.05770532,125.12,125.07,32.2]
[1743442553111,35.08294582,125.17,125.08,1.44603869]
[1743442553309,32.24,125.19,125.08,1.44603869]
[1743442553310,396.15704582,125.2,125.08,36.52898451]
[1743442553510,37.15704582,125.2,125.09,1.44603869]
[1743442553714,7.9887,125.19,125.15,7.991]
[1743442553914,2.0741,125.2,125.14,32.28]
[1743442554121,2.0023,125.24,125.14,32.28]
[1743442554312,0.05782016,125.18,125.17,7.9897]
[1743442554616,2.0023,125.24,125.17,32.32]
[1743442554813,32.32,125.25,125.19,7.9878]
[1743442555210,7.9863,125.23,125.19,7.9878]
[1743442555610,0.05941731,125.22,125.2,0.05175944]
[1743442556015,7.9872,125.21,125.2,0.05175944]
[1743442557518,7.9872,125.21,125.2,5.944e-05]
[1743442557714,32.71941731,125.22,125.11,7.9934]
[1743442557915,35.08294582,125.19,125.1,2.1606]
[1743442558118,35.08294582,125.16,125.1,2.1606]
[1743442558418,7.9936,125.11,125.09,33.16]
[1743442558916,8.0516307,125.11,125.09,33.21901874]
[1743442559310,0.0580307,125.11,125.09,33.21901874]
[1743442559715,0.0580307,125.11,125.09,0.05901874]
[1743442560219,8.0520307,125.11,125.09,0.05901874]
[1743442560413,0.0580307,125.11,125.09,0.05901874]
[1743442560920,7.9942,125.1,125.09,0.05901874]
[1743442561419,0.0580307,125.11,125.09,33.15901874]
[1743442561616,35.08294582,125.16,125.09,33.15901874]
[1743442561815,35.08294582,125.19,125.09,33.15901874]
[1743442562021,35.08294582,125.19,125.09,33.1]
[1743442562320,7.9907,125.16,125.12,7.9926]
[1743442562515,35.08294582,125.19,125.12,33.22]
[1743442562711,0.05471184,125.15,125.13,0.06038228]
[1743442563516,7.9916,125.14,125.13,0.06038228]
[1743442564218,0.05471184,125.15,125.13,0.06038228]
[1743442566920,0.05471184,125.15,125.13,2.11518228]
[1743442568117,0.05471184,125.15,125.13,10.10738228]
[1743442568319,0.05471184,125.15,125.13,2.11518228]
[1743442569124,0.05471184,125.15,125.13,10.10708228]
[1743442569624,0.05471184,125.15,125.13,0.06038228]
[1743442570323,7.9916,125.14,125.13,0.06038228]
[1743442571324,0.05471184,125.15,125.13,0.06038228]
[1743442571721,35.08294582,125.23,125.14,34.2]
[1743442571921,35.08294582,125.23,125.15,4.37]
[1743442572422,6.4938,125.25,125.15,4.37]
[1743442572423,7.9869,125.22,125.18,7.9891]
[1743442572621,7.9869,125.22,125.18,42.1891]
[1743442572814,0.05668055,125.21,125.19,0.05984302]
[1743442573424,0.05668055,125.21,125.19,8.04794302]
[1743442573821,0.05668055,125.21,125.19,0.05984302]
[1743442574419,7.9856,125.24,125.21,7.9871]
[1743442574620,7.9849,125.25,125.19,0.05984302]
[1743442574816,7.9849,125.25,125.19,1.44491488]
[1743442575026,2.079,125.28,125.19,1.44491488]
[1743442575229,7.9851,125.25,125.19,1.44491488]
[1743442575527,0.05631755,125.23,125.21,8.0429114]
[1743442575825,0.05631755,125.23,125.22,34.06]
[1743442576015,36.0952,125.29,125.22,42.046]
[1743442576220,7.9843,125.26,125.22,44.0673]
[1743442576717,7.9848,125.25,125.22,44.0673]
[1743442577026,36.0952,125.29,125.22,44.0673]
[1743442577219,8.04412547,125.25,125.22,44.12346517]
[1743442577419,0.05952547,125.25,125.22,44.12346517]
[1743442577926,0.05952547,125.25,125.22,36.13746517]
[1743442578226,8.04452547,125.25,125.22,36.13746517]
[1743442578626,0.05952547,125.25,125.22,36.13746517]
[1743442578828,7.9859,125.23,125.22,36.13746517]
[1743442579024,0.05952547,125.25,125.22,36.13746517]
[1743442579424,7.9857,125.24,125.22,2.07746517]
[1743442579728,0.05952547,125.25,125.22,2.07746517]
[1743442579922,7.9859,125.23,125.22,0.05616517]
[1743442580628,7.9858,125.24,125.22,0.05616517]
[1743442580828,0.05952547,125.25,125.22,0.05616517]
[1743442581129,7.9857,125.24,125.22,0.05616517]
[1743442581328,0.05952547,125.25,125.22,0.05616517]
[1743442582419,0.05952547,125.25,125.23,7.9859]
[1743442583519,0.05952547,125.25,125.24,7.9853]
[1743442584023,0.05952547,125.25,125.23,7.9857]
[1743442584224,0.05952547,125.25,125.22,4.10396517]
[1743442584430,0.05952547,125.25,125.22,0.05616517]
[1743442585137,0.05952547,125.25,125.22,8.04226517]
[1743442585433,0.05952547,125.25,125.22,0.05616517]
[1743442586336,0.05952547,125.25,125.24,7.9853]
[1743442586531,0.05952547,125.25,125.24,41.6653]
[1743442588131,0.05952547,125.25,125.24,33.68]
[1743442589335,0.05952547,125.25,125.22,0.05616517]
[1743442589935,7.9856,125.24,125.22,0.05616517]
[1743442590741,0.05952547,125.25,125.22,0.05616517]
[1743442591339,7.9859,125.23,125.22,0.05616517]
[1743442591537,0.05952547,125.25,125.18,33.66]
[1743442591743,2.1821,125.25,125.18,33.66]
[1743442591937,2.1821,125.25,125.15,41.34834582]
[1743442592138,2.1821,125.25,125.16,35.08513895]
[1743442592139,2.0158,125.24,125.16,35.08513895]
[1743442592343,2.0158,125.24,125.16,33.64]
[1743442592654,0.05245701,125.21,125.19,0.05366532]
[1743442592944,7.9879,125.2,125.19,0.05366532]
[1743442594043,68.75540283,125.21,125.15,33.56]
[1743442594249,2.0805,125.2,125.15,33.56]
[1743442594443,7.9888,125.19,125.16,7.9903]
[1743442594648,2.0805,125.2,125.14,287.5]
[1743442594947,2.0805,125.2,125.14,321.08]
[1743442595343,0.06122099,125.18,125.16,0.05102833]
[1743442595848,7.9897,125.17,125.16,0.05102833]
[1743442596056,0.06122099,125.18,125.12,33.52]
[1743442596245,2.0295,125.19,125.12,33.52]
[1743442596445,35.08294582,125.18,125.11,33.5]
[1743442596942,35.08294582,125.18,125.08,287.36]
[1743442596943,68.56294582,125.18,125.08,287.36]
[1743442597148,35.08294582,125.15,125.07,6.2306]
[1743442597346,7.9952,125.09,125.06,41.4564]
[1743442597547,7.9952,125.09,125.06,7.9964]
[1743442597938,35.6127,125.14,125.02,87.5557989]
[1743442598246,35.08294582,125.1,125.02,87.5557989]
[1743442598443,7.9972,125.06,125.02,87.5557989]
[1743442598639,7.9972,125.06,125.02,95.5546989]
[1743442598845,0.05893994,125.05,125.03,0.05051689]
[1743442599951,0.05893994,125.05,125.04,33.38]
[1743442600552,7.9936,125.11,125.04,33.38]
[1743442600747,45.42714,125.12,125.04,33.38]
[1743442600947,12.06714,125.12,125.09,7.9948]
[1743442601142,12.06714,125.12,125.07,33.34]
[1743442601446,20.06044,125.12,125.08,7.995]
[1743442601648,0.05302575,125.11,125.07,33.34]
[1743442601852,0.05302575,125.11,125.09,0.05691597]
[1743442602147,0.05302575,125.11,125.1,41.3342]
[1743442603051,0.05302575,125.11,125.1,33.34]
[1743442604052,12.06714,125.12,125.1,33.34]
[1743442604252,12.06714,125.12,125.11,7.9936]
[1743442604445,37.13294582,125.21,125.1,35.3784]
[1743442604755,4.1808,125.2,125.1,70.46134582]
[1743442605053,7.9894,125.18,125.14,7.9913]
[1743442605248,0.05995375,125.17,125.15,33.26]
[1743442605448,0.05995375,125.17,125.15,41.251]
[1743442605653,0.05995375,125.17,125.15,33.26]
[1743442606554,8.04975375,125.17,125.15,33.26]
[1743442607053,0.05995375,125.17,125.15,33.26]
[1743442607449,7.9908,125.16,125.14,0.055985]
[1743442607953,7.991,125.15,125.14,0.055985]
[1743442611057,7.9936,125.12,125.09,33.06]
[1743442611256,7.9936,125.12,125.09,41.0548]
[1743442611552,33.06,125.13,125.04,363.0]
[1743442611757,39.31194582,125.12,125.05,33.06]
[1743442612152,7.996,125.08,125.07,0.0612126]
[1743442612357,0.05823211,125.1,125.07,0.0612126]
[1743442612762,8.05283211,125.1,125.07,0.0612126]
[1743442613459,0.05823211,125.1,125.07,0.0612126]
[1743442613860,0.05823211,125.1,125.07,8.0569126]
[1743442614261,0.05823211,125.1,125.08,32.96]
[1743442615762,8.05253211,125.1,125.08,32.96]
[1743442616462,8.05253211,125.1,125.08,40.9554]
[1743442616864,0.05823211,125.1,125.08,40.9554]
[1743442617159,0.05823211,125.1,125.09,7.9948]
[1743442617361,7.9913,125.15,125.08,32.96]
[1743442617554,69.99224582,125.18,125.08,32.96]
[1743442617754,2.0693,125.18,125.09,36.52903896]
[1743442617959,10.0584,125.18,125.1,2.0833]
[1743442618261,10.0584,125.18,125.14,7.9912]
[1743442618664,0.05815456,125.17,125.15,8.04195932]
[1743442619069,0.05815456,125.17,125.15,0.05095932]
[1743442621771,8.04795456,125.17,125.15,0.05095932]
[1743442622265,0.05815456,125.17,125.15,0.05095932]
[1743442622468,7.9904,125.16,125.15,0.05095932]
[1743442622766,32.77815456,125.17,125.09,40.7145]
[1743442622971,7.9927,125.13,125.09,40.7145]
[1743442623265,4.0525,125.15,125.09,40.7143]
[1743442623472,7.9926,125.13,125.09,40.7143]
[1743442623768,0.05205584,125.12,125.1,0.05749972]
[1743442623968,8.04495584,125.12,125.1,0.05749972]
[1743442624874,0.05205584,125.12,125.1,0.05749972]
[1743442626670,7.9936,125.11,125.1,0.05749972]
[1743442627168,0.05205584,125.12,125.1,0.05749972]
[1743442628971,0.05205584,125.12,125.1,8.05129972]
[1743442629574,0.05205584,125.12,125.1,0.05749972]
[1743442629966,7.9936,125.11,125.1,0.05749972]
[1743442631073,0.05205584,125.12,125.04,1.991]
[1743442631280,71.67544582,125.15,125.03,4.3293]
[1743442631565,35.08294582,125.12,125.04,40.4976]
[1743442631867,2.0217,125.11,125.05,7.9973]
[1743442632074,2.0217,125.11,125.05,32.5]
[1743442632371,2.0217,125.11,125.07,0.05108033]
[1743442632372,0.05907278,125.09,125.07,0.05108033]
[1743442632774,7.9959,125.08,125.07,0.05108033]
[1743442633971,0.05907278,125.09,125.02,32.4]
[1743442633972,35.1420186,125.09,125.02,32.4]
[1743442634172,2.171,125.08,125.02,32.4]
[1743442634776,7.9971,125.06,125.03,7.9983]
[1743442635073,8.05328358,125.06,125.04,0.03889746]
[1743442635280,32.36,125.05,124.94,506.50949727]
[1743442635574,34.3937,125.05,124.94,538.86949727]
[1743442635875,34.3937,125.05,124.97,8.0023]
[1743442636075,34.3937,125.05,124.94,319.98]
[1743442636276,34.3937,125.05,124.95,1.44752935]
[1743442636576,0.06115073,125.01,124.98,8.0014]
[1743442636776,0.06115073,125.01,124.97,32.34]
[1743442637174,0.06115073,125.01,124.93,87.5557989]
[1743442637476,32.32,125.02,124.94,1.44774114]
[1743442637676,0.06106646,124.98,124.93,95.5604989]
[1743442637880,0.06106646,124.98,124.93,87.5557989]
[1743442638671,0.06106646,124.98,124.92,32.3]
[1743442638871,8.0033,124.96,124.93,1.4478542]
[1743442639579,8.0027,124.97,124.93,1.4478542]
[1743442639872,0.06106646,124.98,124.88,14.98384803]
[1743442640076,32.24,124.96,124.89,1.44834445]
[1743442640275,0.05671903,124.94,124.87,32.24]
[1743442640576,0.05671903,124.94,124.88,1.4485074]
[1743442640871,0.05671903,124.94,124.89,8.0072]
[1743442641077,0.05671903,124.94,124.89,32.2]
[1743442641470,0.05671903,124.94,124.9,1.44826342]
[1743442641667,10.0725,125.0,124.91,35.08294582]
[1743442641867,10.0725,125.0,124.92,33.62826342]
[1743442642067,10.0725,125.0,124.94,8.0043]
[1743442642272,8.0013,124.99,124.95,32.18]
[1743442642681,0.05792172,124.98,124.96,0.05671903]
[1743442644876,0.05792172,124.98,124.97,8.0025]
[1743442645082,73.51534582,125.06,124.96,0.05671903]
[1743442645272,295.738,125.05,124.99,8.0009]
[1743442645477,295.738,125.05,124.99,32.08]
[1743442645478,287.74,125.05,124.99,32.08]
[1743442645678,6.3324,125.06,124.99,32.08]
[1743442645877,14.3293,125.06,125.0,8.0003]
[1743442646279,0.05047449,125.04,125.02,0.05236346]
[1743442647685,8.04857449,125.04,125.02,0.05236346]
[1743442649185,0.05047449,125.04,125.02,0.05236346]
[1743442650583,8.04887449,125.04,125.02,0.05236346]
[1743442650784,0.05047449,125.04,125.02,0.05236346]
[1743442651084,7.9987,125.03,125.02,0.05236346]
[1743442651283,0.05047449,125.04,125.02,0.05236346]
[1743442651986,8.04887449,125.04,125.02,0.05236346]
[1743442652180,0.05047449,125.04,125.02,0.05236346]
[1743442653781,8.0008,125.0,124.95,39.8834]
[1743442654180,8.0004,125.01,124.97,8.0024]
[1743442654580,73.29534582,125.06,124.96,31.9]
[1743442654985,0.05526654,125.02,125.0,0.05272935]
[1743442655394,8.05516654,125.02,125.0,0.05272935]
[1743442655687,0.05526654,125.02,125.0,0.05272935]
[1743442655886,7.9999,125.01,125.0,0.05272935]
[1743442658585,0.05526654,125.02,125.0,0.05272935]
[1743442659784,8.05456654,125.02,125.0,0.05272935]
[1743442660293,0.05526654,125.02,125.0,0.05272935]
[1743442660479,0.05526654,125.02,125.0,8.05322935]
[1743442660885,0.05526654,125.02,125.0,0.05272935]
[1743442662880,7.9999,125.01,125.0,0.05272935]
[1743442663487,8.05486654,125.02,125.0,0.05272935]
[1743442663786,0.05526654,125.02,125.0,0.05272935]
[1743442664089,0.05526654,125.02,125.0,8.05322935]
[1743442664289,0.05526654,125.02,125.01,31.72]
[1743442664685,0.05526654,125.02,125.01,39.7199]
[1743442664887,7.9978,125.05,125.01,39.7199]
[1743442665089,35.08294582,125.09,125.01,31.72]
[1743442665284,7.9984,125.04,125.01,31.72]
[1743442665994,0.05630665,125.04,125.01,31.77762563]
[1743442668297,0.05630665,125.04,125.02,7.9993]
[1743442668796,8.05430665,125.04,125.02,7.9993]
[1743442668999,0.05630665,125.04,125.03,7.9987]
[1743442669197,0.05630665,125.04,125.01,31.77762563]
[1743442669894,0.05630665,125.04,125.02,7.9989]
[1743442670093,0.05630665,125.04,125.01,31.77762563]
[1743442670694,7.9955,125.08,125.01,31.77762563]
[1743442670899,7.9955,125.08,125.01,31.72]
[1743442671099,287.86,125.11,125.01,31.72]
[1743442671301,7.9962,125.07,125.03,7.9983]
[1743442671599,7.9962,125.07,125.04,31.6]
[1743442671806,0.05508529,125.06,125.04,31.65851643]
[1743442672805,8.05188529,125.06,125.04,31.65851643]
[1743442673202,0.05508529,125.06,125.04,31.65851643]
[1743442673404,7.9974,125.05,125.04,31.65851643]
[1743442675307,8.05218529,125.06,125.04,31.65851643]
[1743442676206,0.05508529,125.06,125.04,31.65851643]
[1743442676709,8.05238529,125.06,125.04,31.65851643]
[1743442676911,0.05508529,125.06,125.04,31.65851643]
[1743442677110,7.9974,125.05,125.04,31.65851643]
[1743442678616,8.05218529,125.06,125.04,31.65851643]
[1743442679411,0.05508529,125.06,125.04,31.65851643]
[1743442679914,0.05508529,125.06,125.05,7.9974]
[1743442680115,0.05508529,125.06,125.04,31.65851643]
[1743442680510,0.05508529,125.06,125.05,7.9974]
[1743442680706,374.9841,125.14,125.04,31.65851643]
[1743442680909,7.9946,125.1,125.06,7.9962]
[1743442681108,406.3841,125.14,125.06,7.9962]
[1743442681307,406.3841,125.14,125.07,31.38]
[1743442681512,7.9945,125.1,125.07,39.3758]
[1743442681706,406.3841,125.14,125.07,31.38]
[1743442681907,7.9948,125.09,125.07,31.43580151]
[1743442682210,0.05824497,125.1,125.07,31.43580151]